bitfinex-derivatives/quotes_BTCF0:USTF0_20250211
["timestamp","ask_amount","ask_price","bid_price","bid_amount"]
[1739293848674,0.2078881,96201.0,96200.0,0.3732263]
[1739293848872,0.2078881,96201.0,96200.0,0.24878594]
[1739293850675,0.2079011,96195.0,96191.0,0.12444036]
[1739293850875,0.2079011,96195.0,96190.0,0.0453]
[1739293851076,0.2079011,96195.0,96189.0,0.00155937]
[1739293852466,0.2079011,96195.0,96194.0,0.03448]
[1739293853878,0.2079011,96195.0,96194.0,0.03248]
[1739293855676,0.2844611,96195.0,96194.0,0.03248]
[1739293856771,0.2844611,96195.0,96189.0,0.00155937]
[1739293856772,0.07656,96195.0,96189.0,0.00155937]
[1739293856967,0.5687119,96190.0,96189.0,0.00155937]
[1739293857985,0.2079119,96190.0,96189.0,0.00155937]
[1739293858682,0.2099119,96190.0,96189.0,0.00355937]
[1739293860177,0.2149119,96190.0,96189.0,0.00155937]
[1739293860675,0.2129119,96190.0,96189.0,0.00155937]
[1739293860876,0.2139119,96190.0,96189.0,0.00155937]
[1739293861080,0.207927,96183.0,96182.0,0.1866288]
[1739293862186,0.20794,96177.0,96173.0,0.0441]
[1739293862381,0.2079465,96174.0,96173.0,0.0441]
[1739293863288,0.5687465,96174.0,96173.0,0.0441]
[1739293863683,0.3608,96174.0,96164.0,0.31106916]
[1739293863984,0.207966,96165.0,96164.0,0.31106916]
[1739293864185,0.207966,96165.0,96164.0,0.1866288]
[1739293865178,0.207966,96165.0,96164.0,0.1916288]
[1739293865873,0.00831675,96174.0,96164.0,0.5524288]
[1739293866072,0.00779674,96174.0,96173.0,0.3608]
[1739293866382,0.00779674,96174.0,96173.0,0.4042]
[1739293866681,0.00679674,96174.0,96173.0,1.9042]
[1739293866886,0.00015592,96179.0,96173.0,1.9042]
[1739293867085,0.00015592,96179.0,96178.0,0.2079379]
[1739293869088,0.051965,96214.0,96173.0,0.4042]
[1739293869285,0.2078962,96198.0,96192.0,0.2079058]
[1739293869593,0.2079024,96195.0,96194.0,0.2079033]
[1739293869784,0.2079024,96195.0,96194.0,0.2565033]
[1739293870283,0.2079024,96195.0,96193.0,0.0887]
[1739293871283,0.2099024,96195.0,96193.0,0.0887]
[1739293871481,0.2139024,96195.0,96193.0,0.0887]
[1739293871686,0.2139024,96195.0,96193.0,0.2966051]
[1739293872486,0.00015592,96204.0,96203.0,0.2078837]
[1739293872680,0.00015592,96204.0,96203.0,0.5686837]
[1739293872881,0.07588,96216.0,96203.0,0.37221657]
[1739293873082,0.2078571,96216.0,96212.0,0.2078639]
[1739293873281,0.07588,96222.0,96214.0,0.3608]
[1739293873481,0.51405854,96227.0,96219.0,0.2078484]
[1739293873482,0.51353853,96227.0,96219.0,0.2078484]
[1739293873678,0.2078455,96221.0,96219.0,0.2078484]
[1739293874893,0.07588,96226.0,96221.0,0.2078442]
[1739293876290,0.07588,96226.0,96219.0,0.002]
[1739293876587,0.07588,96226.0,96224.0,0.2078371]
[1739293876993,0.08788,96226.0,96224.0,0.2078371]
[1739293877285,0.012,96226.0,96224.0,0.2078371]
[1739293877787,0.2198352,96226.0,96224.0,0.2088371]
[1739293877991,0.2268352,96226.0,96224.0,0.2098371]
[1739293879083,0.019,96226.0,96224.0,0.2098371]
[1739293879680,0.007,96226.0,96224.0,0.2088371]
[1739293879878,0.013,96226.0,96224.0,0.2088371]
[1739293880393,0.006,96226.0,96224.0,0.2078371]
[1739293880892,0.008,96226.0,96224.0,0.2078371]
[1739293883184,0.008,96226.0,96225.0,0.01157902]
[1739293883390,0.008,96226.0,96224.0,0.2078371]
[1739293883693,0.008,96226.0,96225.0,1.52787132]
[1739293884088,0.008,96226.0,96225.0,1.72408214]
[1739293884293,0.003,96226.0,96225.0,1.73808214]
[1739293884493,0.00015592,96230.0,96229.0,0.2078276]
[1739293884692,0.2078085,96238.0,96237.0,0.2078103]
[1739293885497,0.40702001,96257.0,96232.0,0.3608]
[1739293885498,0.2077699,96256.0,96236.0,0.0519531]
[1739293885795,0.2078017,96243.0,96242.0,0.2077988]
[1739293885998,0.3608,96249.0,96236.0,0.00015592]
[1739293886296,0.2078101,96238.0,96236.0,0.00015592]
[1739293886593,0.2078101,96238.0,96237.0,0.2078103]
[1739293886985,0.3608,96241.0,96236.0,0.00415592]
[1739293887185,0.2078103,96237.0,96236.0,0.00415592]
[1739293888201,0.2152367,96237.0,96236.0,0.00415592]
[1739293888696,0.2162367,96237.0,96236.0,0.00415592]
[1739293889792,0.2162367,96237.0,96236.0,0.00015592]
[1739293890087,0.2222367,96237.0,96236.0,0.00015592]
[1739293890693,0.2162367,96237.0,96236.0,0.00315592]
[1739293891289,0.2152367,96237.0,96236.0,0.00415592]
[1739293891490,0.2182367,96237.0,96236.0,0.00115592]
[1739293891995,0.2192367,96237.0,96236.0,0.00015592]
[1739293892992,0.2172367,96237.0,96236.0,0.00015592]
[1739293893394,0.2078297,96228.0,96227.0,0.2078309]
[1739293893994,0.0748,96232.0,96220.0,0.12444036]
[1739293894195,0.2078254,96230.0,96220.0,0.12444036]
[1739293894403,0.2078306,96228.0,96226.0,0.2078332]
[1739293894606,0.2078306,96228.0,96227.0,0.2078319]
[1739293896195,0.2088306,96228.0,96227.0,0.2138319]
[1739293896900,0.2088306,96228.0,96227.0,0.2158319]
[1739293897402,0.2088306,96228.0,96227.0,0.2138319]
[1739293897608,0.2088306,96228.0,96227.0,0.2148319]
[1739293897796,0.2078306,96228.0,96227.0,0.2118319]
[1739293897996,0.2078306,96228.0,96227.0,0.2128319]
[1739293898902,0.2078306,96228.0,96227.0,0.2138319]
[1739293900499,0.2078306,96228.0,96227.0,0.2128319]
[1739293900809,0.2078306,96228.0,96227.0,0.2138319]
[1739293901117,0.2078306,96228.0,96227.0,0.2128319]
[1739293901411,0.2078306,96228.0,96227.0,0.2148319]
[1739293901604,0.00015592,96235.0,96227.0,0.005]
[1739293901796,0.00015592,96235.0,96234.0,0.2078168]
[1739293902206,0.00015592,96235.0,96234.0,0.31629531]
[1739293903297,0.2077984,96243.0,96234.0,0.31629531]
[1739293903298,0.15273853,96246.0,96245.0,0.2077931]
[1739293903498,0.15273853,96246.0,96245.0,0.58027538]
[1739293904308,0.36052943,96246.0,96245.0,0.58027538]
[1739293904505,0.37193157,96246.0,96245.0,0.58027538]
[1739293905908,0.38093157,96246.0,96245.0,0.58127538]
[1739293906208,0.38093157,96246.0,96245.0,0.01268228]
[1739293906609,0.38093157,96246.0,96245.0,0.22047538]
[1739293906809,0.22819304,96246.0,96245.0,0.22047538]
[1739293907310,0.22819304,96246.0,96245.0,0.01268228]
[1739293907501,0.22819304,96246.0,96245.0,0.01260538]
[1739293907701,0.22819304,96246.0,96245.0,0.001]
[1739293907906,0.66319304,96246.0,96245.0,0.001]
[1739293908108,0.2078211,96232.0,96231.0,0.15162055]
[1739293908308,0.5686211,96232.0,96231.0,0.15162055]
[1739293908505,0.2078363,96225.0,96224.0,0.18091531]
[1739293908807,0.2822363,96225.0,96224.0,0.18091531]
[1739293909009,0.2078579,96215.0,96214.0,0.31010791]
[1739293909204,0.5686579,96215.0,96214.0,0.28806791]
[1739293910004,0.577056,96215.0,96214.0,0.30206791]
[1739293911214,0.578056,96215.0,96214.0,0.02]
[1739293911513,0.2079032,96194.0,96193.0,0.28806791]
[1739293911721,0.2079032,96194.0,96162.0,0.3608]
[1739293911722,0.2079249,96184.0,96172.0,0.2079505]
[1739293912011,0.5687249,96184.0,96172.0,0.2079505]
[1739293912211,0.5687249,96184.0,96170.0,0.12444036]
[1739293912411,0.2079195,96187.0,96172.0,0.3608]
[1739293912609,0.2079162,96189.0,96177.0,0.12444036]
[1739293913010,0.2079162,96189.0,96184.0,0.2079237]
[1739293913212,0.5687227,96185.0,96177.0,0.12444036]
[1739293913509,0.5687227,96185.0,96177.0,0.2079387]
[1739293913820,0.5687227,96185.0,96183.0,0.00455935]
[1739293914505,0.5697227,96185.0,96183.0,0.00455935]
[1739293914905,0.3618,96185.0,96183.0,0.21248585]
[1739293915205,0.001,96185.0,96183.0,0.21248585]
[1739293915607,0.001,96184.0,96183.0,0.21748585]
[1739293916007,0.001,96184.0,96183.0,1.71748585]
[1739293916204,0.001,96185.0,96183.0,2.07328585]
[1739293916419,0.00015592,96193.0,96192.0,0.2079076]
[1739293916617,0.3608,96211.0,96192.0,0.3608]
[1739293916618,0.07416,96207.0,96192.0,0.3608]
[1739293916811,0.07416,96207.0,96203.0,0.2078838]
[1739293917009,0.36132001,96220.0,96203.0,0.2078838]
[1739293917212,0.2078497,96219.0,96203.0,0.2078838]
[1739293917415,0.2078516,96218.0,96203.0,1.7078838]
[1739293917615,0.00760036,96220.0,96203.0,1.7078838]
[1739293917914,0.36095592,96213.0,96203.0,1.7078838]
[1739293918118,0.2078645,96212.0,96210.0,0.2078678]
[1739293918714,0.36095592,96213.0,96212.0,0.2078644]
[1739293918925,0.56881812,96213.0,96212.0,0.2078644]
[1739293919307,0.00015592,96213.0,96212.0,0.5686644]
[1739293920611,0.00115592,96213.0,96212.0,0.5756644]
[1739293921213,0.00115592,96213.0,96212.0,0.5736644]
[1739293921509,0.00115592,96213.0,96212.0,0.005]
[1739293921921,0.07551592,96213.0,96193.0,0.0893]
[1739293922217,0.07551592,96213.0,96192.0,0.3608]
[1739293922218,0.207901,96196.0,96192.0,0.3608]
[1739293922521,0.3608,96195.0,96190.0,0.12444036]
[1739293922721,0.3608,96195.0,96192.0,0.2079074]
[1739293923215,0.3608,96195.0,96185.0,0.12444036]
[1739293923521,0.3608,96195.0,96194.0,0.00715592]
[1739293923721,0.36822342,96195.0,96194.0,0.00715592]
[1739293924222,0.00742342,96195.0,96194.0,0.00715592]
[1739293924407,0.2079012,96195.0,96194.0,0.00715592]
[1739293924919,0.2079012,96195.0,96194.0,0.00215592]
[1739293925418,0.2079012,96195.0,96194.0,0.00315592]
[1739293926313,0.2109012,96195.0,96194.0,0.00115592]
[1739293927015,0.2079012,96195.0,96194.0,0.00115592]
[1739293927217,0.2159012,96195.0,96194.0,0.00015592]
[1739293927824,0.2089012,96195.0,96194.0,0.00015592]
[1739293928126,0.2159012,96195.0,96194.0,0.00015592]
[1739293928820,0.207925,96184.0,96170.0,0.12444036]
[1739293929120,0.568725,96184.0,96179.0,0.2079358]
[1739293929428,0.568725,96184.0,96180.0,0.2079317]
[1739293929918,0.568725,96184.0,96175.0,0.2079441]
[1739293930420,0.568725,96184.0,96174.0,0.00015592]
[1739293931120,0.568725,96184.0,96181.0,0.20793]
[1739293931621,0.00015592,96193.0,96183.0,0.00255935]
[1739293931931,0.00015592,96193.0,96190.0,0.2079108]
[1739293932121,0.20806202,96193.0,96190.0,0.2079108]
[1739293932323,0.2079088,96192.0,96190.0,0.2079108]
[1739293932825,0.00932667,96193.0,96185.0,0.0528]
[1739293933031,0.00015592,96193.0,96192.0,0.3608]
[1739293933332,0.00015592,96193.0,96192.0,0.4078]
[1739293933522,0.2078649,96212.0,96207.0,0.2078734]
[1739293934921,0.36140001,96214.0,96203.0,0.3608]
[1739293935127,0.00928404,96216.0,96204.0,0.01196587]
[1739293935435,0.20800652,96219.0,96217.0,0.2078529]
[1739293935924,0.00015592,96219.0,96217.0,0.2078529]
[1739293936232,0.00015592,96219.0,96218.0,0.0119331]
[1739293936728,0.00515592,96219.0,96218.0,0.0119331]
[1739293936923,0.00515592,96219.0,96218.0,0.01193294]
[1739293937325,0.00015592,96219.0,96218.0,0.01193294]
[1739293937521,0.00715592,96219.0,96218.0,0.01193294]
[1739293937722,0.00715592,96219.0,96218.0,0.01191982]
[1739293938028,0.00615592,96219.0,96218.0,0.01191982]
[1739293938224,0.00715592,96219.0,96218.0,0.01191982]
[1739293940723,0.00715592,96219.0,96218.0,0.0116962]
[1739293941027,0.00715592,96219.0,96217.0,0.2078529]
[1739293941534,0.21500562,96219.0,96217.0,0.2078529]
[1739293942228,0.21300562,96219.0,96218.0,0.2078516]
[1739293942434,0.21300562,96219.0,96214.0,0.0529]
[1739293942435,0.2078581,96215.0,96214.0,0.2078568]
[1739293944822,0.00715592,96219.0,96205.0,0.3608]
[1739293945032,0.21500532,96219.0,96218.0,0.2078516]
[1739293945328,0.20800532,96219.0,96218.0,0.2078516]
[1739293945530,0.00015592,96219.0,96218.0,0.2078516]
[1739293945732,0.1044,96243.0,96217.0,0.3608]
[1739293946033,0.07432,96241.0,96238.0,0.2078084]
[1739293946532,0.05953852,96239.0,96238.0,0.5686084]
[1739293946931,0.00015592,96248.0,96238.0,0.3608]
[1739293947135,0.07424,96246.0,96245.0,0.2077933]
[1739293947434,0.00969459,96248.0,96245.0,0.2077933]
[1739293947824,0.00969459,96248.0,96246.0,0.2077896]
[1739293949030,0.00969459,96248.0,96246.0,0.2087896]
[1739293949031,0.21748319,96248.0,96246.0,0.2087896]
[1739293949534,0.21748319,96248.0,96246.0,0.001]
[1739293949736,0.21848319,96248.0,96246.0,0.001]
[1739293950424,0.21848319,96248.0,96245.0,0.2077928]
[1739293950831,0.21848319,96248.0,96246.0,0.2077907]
[1739293951230,0.21848319,96248.0,96246.0,0.2087907]
[1739293951636,0.21848319,96248.0,96246.0,0.2077907]
[1739293951931,0.01069459,96248.0,96246.0,0.2077907]
[1739293952133,0.01069459,96248.0,96245.0,0.001]
[1739293952323,0.01069459,96248.0,96247.0,0.207789]
[1739293953338,0.00115592,96248.0,96247.0,0.207789]
[1739293953836,0.00115592,96248.0,96247.0,0.208789]
[1739293954428,0.00115592,96248.0,96247.0,0.207789]
[1739293954628,0.00115592,96248.0,96247.0,0.208789]
[1739293955723,0.00215592,96248.0,96247.0,0.208789]
[1739293957037,0.00015592,96248.0,96247.0,0.208789]
[1739293957337,0.00115592,96248.0,96247.0,0.207789]
[1739293957530,0.00115592,96248.0,96247.0,0.208789]
[1739293957929,0.00115592,96248.0,96247.0,0.207789]
[1739293958228,0.20894272,96248.0,96247.0,0.001]
[1739293959036,0.2078257,96230.0,96229.0,0.20798382]
[1739293959235,0.2078257,96230.0,96229.0,0.00015592]
[1739293960334,0.2088257,96230.0,96229.0,0.00415592]
[1739293960737,0.2088257,96230.0,96229.0,0.00115592]
[1739293960938,0.2078257,96230.0,96229.0,0.20798382]
[1739293961238,0.2118257,96230.0,96229.0,0.21098382]
[1739293961438,0.22112574,96230.0,96229.0,0.21098382]
[1739293962530,0.22012574,96230.0,96229.0,0.00315592]
[1739293962728,0.22012574,96230.0,96229.0,0.01492499]
[1739293962930,0.22012574,96230.0,96229.0,0.00315592]
[1739293963131,0.22012574,96230.0,96229.0,0.01492462]
[1739293963330,0.22112574,96230.0,96229.0,0.01192462]
[1739293963633,0.44806004,96230.0,96206.0,0.00052]
[1739293963934,0.207895,96198.0,96187.0,0.2079182]
[1739293964136,0.07396,96197.0,96188.0,0.03081061]
[1739293964439,0.2079101,96191.0,96189.0,0.01184999]
[1739293964629,0.2079101,96191.0,96190.0,0.01184999]
[1739293965236,0.07396,96197.0,96181.0,0.2079297]
[1739293965237,0.2079221,96186.0,96181.0,0.2079297]
[1739293965432,0.07396,96197.0,96182.0,0.01175484]
[1739293965626,0.2079239,96185.0,96183.0,0.01175484]
[1739293965841,0.2079239,96185.0,96184.0,0.01175484]
[1739293966234,0.2079267,96184.0,96180.0,0.00015592]
[1739293966435,0.2079267,96184.0,96181.0,0.01158967]
[1739293966639,0.2079267,96184.0,96182.0,0.01158967]
[1739293966835,0.2079267,96184.0,96183.0,0.01158967]
[1739293967233,0.2079303,96182.0,96180.0,0.00015592]
[1739293967742,0.2079303,96182.0,96181.0,0.001]
[1739293968242,0.2079303,96182.0,96181.0,0.01150502]
[1739293969541,0.2089303,96182.0,96181.0,0.01150502]
[1739293969944,0.2089303,96182.0,96181.0,0.01250502]
[1739293970330,0.2089303,96182.0,96181.0,0.01150502]
[1739293970535,0.2089303,96182.0,96181.0,0.01250502]
[1739293971030,0.2079303,96182.0,96181.0,0.01254837]
[1739293971232,0.6427703,96182.0,96181.0,0.01254837]
[1739293971434,0.6427703,96182.0,96180.0,0.00015592]
[1739293971641,0.6427703,96182.0,96181.0,0.001]
[1739293972245,0.6969703,96182.0,96181.0,0.001]
[1739293972843,0.3361703,96182.0,96181.0,0.001]
[1739293973643,0.6969703,96182.0,96180.0,0.00015592]
[1739293974045,0.3361703,96182.0,96180.0,0.00015592]
[1739293974245,0.3391703,96182.0,96180.0,0.00015592]
[1739293974448,0.2079315,96181.0,96180.0,0.00015592]
[1739293976740,0.2099315,96181.0,96180.0,0.00015592]
[1739293977443,0.2109315,96181.0,96180.0,0.00015592]
[1739293978851,0.2079315,96181.0,96180.0,0.00015592]
[1739293979053,0.2119315,96181.0,96180.0,0.00015592]
[1739293979754,0.2109315,96181.0,96180.0,0.00015592]
[1739293980142,0.2119315,96181.0,96180.0,0.00015592]
[1739293980447,0.2129315,96181.0,96180.0,0.00015592]
[1739293981953,0.001,96181.0,96163.0,0.2579692]
[1739293982256,0.2079553,96170.0,96163.0,0.2579692]
[1739293983543,0.2079553,96170.0,96163.0,0.05]
[1739293983745,0.002,96170.0,96160.0,0.00015592]
[1739293984047,0.2079726,96162.0,96160.0,0.00015592]
[1739293985351,0.2079726,96162.0,96161.0,0.00255967]
[1739293985543,0.29139297,96162.0,96161.0,0.00255967]
[1739293986151,0.01054037,96162.0,96161.0,0.00255967]
[1739293986347,0.07388,96175.0,96161.0,0.00255967]
[1739293986546,0.07388,96175.0,96173.0,0.2079473]
[1739293986751,0.07388,96175.0,96174.0,0.1037]
[1739293986948,0.07384,96180.0,96174.0,0.1037]
[1739293987249,0.08302542,96180.0,96178.0,0.207938]
[1739293988755,0.00918542,96180.0,96178.0,0.207938]
[1739293989455,0.01215592,96179.0,96178.0,0.207938]
[1739293992064,0.2079025,96195.0,96194.0,0.2079002]
[1739293992352,0.0736,96198.0,96197.0,0.207897]
[1739293992550,0.00952262,96198.0,96197.0,0.01144694]
[1739293992752,0.0736,96203.0,96192.0,0.3608]
[1739293992952,0.0736,96203.0,96202.0,0.2078862]
[1739293993254,0.0736,96203.0,96193.0,0.12444036]
[1739293993453,0.0736,96203.0,96194.0,0.01143361]
[1739293993648,0.207889,96201.0,96200.0,0.2078893]
[1739293994053,0.2078916,96200.0,96197.0,0.2078965]
[1739293994250,0.2078916,96200.0,96198.0,0.0114317]
[1739293994454,0.2078916,96200.0,96199.0,0.0114317]
[1739293994847,0.2149013,96195.0,96194.0,0.002]
[1739293995247,0.2149013,96195.0,96194.0,0.001]
[1739293995448,0.015,96200.0,96181.0,0.2079312]
[1739293995449,0.2079056,96193.0,96181.0,0.2079312]
[1739293995655,0.2079142,96189.0,96181.0,0.2079312]
[1739293995855,0.2079142,96189.0,96188.0,0.01161599]
[1739293997457,0.2079142,96189.0,96188.0,0.00015592]
[1739293997658,0.2813942,96189.0,96188.0,0.00015592]
[1739293997860,0.2843942,96189.0,96188.0,0.00015592]
[1739293998265,0.29390269,96189.0,96188.0,0.00015592]
[1739293998459,0.29090269,96189.0,96188.0,0.00015592]
[1739293998669,0.29490269,96189.0,96188.0,0.00015592]
[1739293999169,0.34547071,96189.0,96188.0,0.00015592]
[1739293999364,0.34447071,96189.0,96188.0,0.00015592]
[1739293999575,0.13655651,96189.0,96167.0,0.5687613]
[1739293999867,0.2079596,96168.0,96167.0,0.5687613]
[1739294000459,0.2079596,96168.0,96167.0,0.21936242]
[1739294000764,0.2079596,96168.0,96167.0,0.21936241]
[1739294001467,0.2079596,96168.0,96167.0,0.2079613]
[1739294001762,0.2079596,96168.0,96167.0,0.003]
[1739294003262,0.21734235,96168.0,96167.0,0.003]
[1739294004157,0.2079726,96162.0,96161.0,0.00155967]
[1739294004362,0.5687726,96162.0,96161.0,0.00155967]
[1739294004962,0.2079791,96159.0,96158.0,0.00015592]
[1739294005161,0.2818191,96159.0,96158.0,0.00015592]
[1739294005965,0.208018,96141.0,96140.0,0.12444036]
[1739294006154,0.208018,96141.0,96139.0,0.0496]
[1739294006763,0.2080298,96136.0,96133.0,0.208034]
[1739294006964,0.0738,96145.0,96132.0,0.0006]
[1739294007269,0.21746689,96145.0,96143.0,0.2080122]
[1739294007468,0.2080117,96144.0,96143.0,0.2080122]
[1739294009362,0.2080117,96144.0,96143.0,0.2100122]
[1739294009568,0.2080117,96144.0,96143.0,0.002]
[1739294010374,0.2090117,96144.0,96143.0,0.008]
[1739294010671,0.2090117,96144.0,96143.0,0.2160137]
[1739294010974,0.2090117,96144.0,96143.0,0.006]
[1739294011272,0.2080224,96139.0,96138.0,0.2080224]
[1739294014072,0.2090224,96139.0,96138.0,0.2120224]
[1739294016468,0.2090224,96139.0,96138.0,0.2080224]
[1739294016672,0.2090224,96139.0,96138.0,0.2120224]
[1739294017074,0.2090224,96139.0,96138.0,0.004]
[1739294017378,0.2090224,96139.0,96138.0,0.2120246]
[1739294017575,0.2080224,96139.0,96138.0,0.2080246]
[1739294017777,0.2090224,96139.0,96138.0,0.2120246]
[1739294019678,0.2080224,96139.0,96138.0,0.2080246]
[1739294019878,0.2080224,96139.0,96138.0,0.2120246]
[1739294020680,0.2080224,96139.0,96138.0,0.2110246]
[1739294024382,0.2080224,96139.0,96138.0,0.2080246]
[1739294024586,0.2080224,96139.0,96138.0,0.2110246]
[1739294026284,0.2080224,96139.0,96138.0,0.2100246]
[1739294026484,0.2080224,96139.0,96138.0,0.002]
[1739294026883,0.2080269,96137.0,96132.0,0.2080358]
[1739294027082,0.208033,96135.0,96133.0,0.2080349]
[1739294029385,0.209033,96135.0,96133.0,0.2130349]
[1739294030388,0.001,96135.0,96133.0,0.2130349]
[1739294030790,0.43484001,96141.0,96129.0,0.12444036]
[1739294030985,0.001,96135.0,96134.0,0.2080332]
[1739294032689,0.00934107,96142.0,96141.0,0.2080181]
[1739294032893,0.2080152,96143.0,96141.0,0.5688181]
[1739294033094,0.07352,96144.0,96141.0,0.5688181]
[1739294033095,0.2080159,96142.0,96141.0,0.5688181]
[1739294033890,0.2080159,96142.0,96141.0,0.2080181]
[1739294034396,0.2090159,96142.0,96141.0,0.2080181]
[1739294035687,0.2080159,96142.0,96141.0,0.2080181]
[1739294035894,0.2100159,96142.0,96141.0,0.2080181]
[1739294036596,0.2090159,96142.0,96141.0,0.2080181]
[1739294036796,0.001,96142.0,96138.0,0.3608]
[1739294037096,0.2080224,96139.0,96138.0,0.3608]
[1739294038401,0.2080353,96133.0,96132.0,0.18678128]
[1739294039598,0.2090353,96133.0,96132.0,0.19278128]
[1739294039999,0.21865647,96133.0,96132.0,0.19278128]
[1739294040387,0.21865647,96133.0,96127.0,0.5694077]
[1739294040388,0.2080419,96130.0,96129.0,0.18678128]
[1739294040605,0.2080419,96130.0,96129.0,0.39482528]
[1739294042307,0.21751287,96130.0,96129.0,0.39482528]
[1739294042904,0.21751287,96130.0,96129.0,0.39782528]
[1739294044919,0.21751287,96130.0,96129.0,0.211044]
[1739294045106,0.21751287,96130.0,96129.0,0.208044]
[1739294045313,0.21751287,96130.0,96129.0,0.210044]
[1739294045912,0.00947097,96130.0,96129.0,0.210044]
[1739294046113,0.2080419,96130.0,96129.0,0.210044]
[1739294046519,0.2090419,96130.0,96129.0,0.212044]
[1739294047213,0.001,96130.0,96129.0,0.212044]
[1739294047413,0.51503765,96145.0,96129.0,0.004]
[1739294047613,0.15423765,96145.0,96144.0,0.2080115]
[1739294049421,0.15523765,96145.0,96144.0,0.2080115]
[1739294049721,0.07003765,96145.0,96144.0,0.2080115]
[1739294049921,0.00015601,96150.0,96149.0,0.2080008]
[1739294050119,0.00015601,96150.0,96149.0,0.5688008]
[1739294050515,1e-08,96150.0,96149.0,0.5688008]
[1739294051120,0.00700001,96150.0,96149.0,0.5698008]
[1739294051419,0.00800001,96150.0,96149.0,0.5698008]
[1739294052019,0.18462977,96155.0,96154.0,0.2079899]
[1739294053227,0.2079711,96163.0,96150.0,0.3608]
[1739294053411,0.2079711,96163.0,96160.0,0.5687753]
[1739294053616,0.00015601,96164.0,96161.0,0.0541]
[1739294054223,0.2079705,96163.0,96161.0,0.2620744]
[1739294054525,0.2129705,96163.0,96161.0,0.2620744]
[1739294055528,0.2169705,96163.0,96161.0,0.2620744]
[1739294055824,0.2079726,96162.0,96161.0,0.2620744]
[1739294056020,0.2079726,96162.0,96161.0,0.0551]
[1739294056221,0.2079726,96162.0,96161.0,0.001]
[1739294056628,0.2079791,96159.0,96158.0,0.3608]
[1739294056926,0.2079964,96151.0,96150.0,0.33243846]
[1739294057117,0.2079986,96150.0,96149.0,0.3608]
[1739294057924,0.3608,96150.0,96143.0,0.18678128]
[1739294058225,0.2080115,96144.0,96143.0,0.18678128]
[1739294058615,0.2080115,96144.0,96143.0,0.39479498]
[1739294058923,0.37057781,96150.0,96143.0,0.18678128]
[1739294058924,0.21833822,96150.0,96143.0,0.18678128]
[1739294059118,0.21777821,96150.0,96149.0,0.2080007]
[1739294059719,0.22077821,96150.0,96149.0,0.2080007]
[1739294060423,0.21777821,96150.0,96149.0,0.2080007]
[1739294060621,0.22077821,96150.0,96149.0,0.2080007]
[1739294062023,0.21777821,96150.0,96149.0,0.2080007]
[1739294062226,0.2080159,96143.0,96142.0,0.2080157]
[1739294062430,0.2080071,96147.0,96146.0,0.2080039]
[1739294062820,0.2080144,96143.0,96142.0,0.2080157]
[1739294063024,0.2080159,96142.0,96141.0,0.0529]
[1739294064333,0.208018,96141.0,96140.0,0.00171613]
[1739294066221,0.261918,96141.0,96140.0,0.00771613]
[1739294066629,0.261918,96141.0,96140.0,0.00615601]
[1739294066832,0.260918,96141.0,96140.0,0.00015601]
[1739294067031,0.001,96141.0,96140.0,0.00615601]
[1739294067230,0.001,96141.0,96140.0,0.21417621]
[1739294067435,0.01069797,96141.0,96140.0,0.21417621]
[1739294067732,0.001,96141.0,96140.0,0.21417621]
[1739294068633,0.001,96141.0,96140.0,0.21317621]
[1739294069337,0.2090181,96141.0,96140.0,0.21417621]
[1739294070037,0.2090181,96141.0,96140.0,0.21317621]
[1739294071634,0.2080181,96141.0,96140.0,0.20817621]
[1739294071929,0.2090181,96141.0,96140.0,0.21317621]
[1739294072623,0.2090181,96141.0,96140.0,0.21417621]
[1739294073326,0.2090181,96141.0,96140.0,0.21317621]
[1739294075133,0.2080181,96141.0,96140.0,0.20817621]
[1739294075340,0.2090181,96141.0,96140.0,0.21317621]
[1739294075936,0.2080181,96141.0,96140.0,0.00015601]
[1739294076134,0.2090181,96141.0,96140.0,0.00515601]
[1739294076835,0.2090181,96141.0,96140.0,0.00715601]
[1739294078334,0.2080181,96141.0,96140.0,0.00015601]
[1739294078534,0.2090181,96141.0,96140.0,0.00515601]
[1739294079337,0.5698181,96141.0,96140.0,0.00515601]
[1739294080249,0.2080397,96131.0,96130.0,0.1]
[1739294080937,0.2620397,96131.0,96130.0,0.1]
[1739294082537,0.2620397,96131.0,96130.0,0.102]
[1739294083742,0.3608,96132.0,96130.0,0.102]
[1739294084047,0.3608,96132.0,96130.0,0.1]
[1739294084248,0.001,96131.0,96130.0,0.3100418]
[1739294084950,0.001,96131.0,96130.0,0.6708418]
[1739294085838,0.00974576,96133.0,96130.0,0.4628]
[1739294086039,0.2080293,96136.0,96130.0,0.4628]
[1739294086347,0.2080293,96136.0,96135.0,0.208031]
[1739294087637,0.21776,96136.0,96135.0,0.208031]
[1739294088447,0.21776,96136.0,96135.0,1.708031]
[1739294088647,0.21876,96136.0,96135.0,1.708031]
[1739294089444,0.21776,96136.0,96135.0,1.710031]
[1739294091748,0.21776,96136.0,96135.0,0.002]
[1739294092646,0.29128,96136.0,96135.0,0.002]
[1739294094547,0.21776,96136.0,96135.0,0.004]
[1739294094750,0.29128,96136.0,96135.0,0.002]
[1739294095141,0.2080396,96132.0,96131.0,0.2080325]
[1739294095945,0.2080396,96132.0,96131.0,1.7080325]
[1739294096441,0.0832507,96136.0,96135.0,0.210031]
[1739294096640,0.0097307,96136.0,96135.0,0.210031]
[1739294096844,0.2080274,96137.0,96135.0,0.002]
[1739294097053,0.2080274,96137.0,96136.0,1.7080288]
[1739294100341,0.2090274,96137.0,96136.0,1.7120288]
[1739294100945,0.2080274,96137.0,96136.0,1.7080288]
[1739294101146,0.2080274,96137.0,96136.0,1.7090288]
[1739294101944,0.2080274,96137.0,96136.0,0.001]
[1739294102150,0.00973274,96140.0,96120.0,0.00156036]
[1739294102452,0.2080483,96127.0,96126.0,0.18678128]
[1739294102646,0.2815283,96127.0,96126.0,0.18678128]
[1739294103043,0.2080483,96127.0,96126.0,0.18678128]
[1739294104652,0.21756885,96127.0,96126.0,0.18678128]
[1739294104848,0.0557,96139.0,96137.0,0.2080259]
[1739294105054,0.2637227,96139.0,96137.0,0.2080259]
[1739294105948,0.2080245,96138.0,96137.0,0.2080259]
[1739294106743,0.3619828,96138.0,96137.0,0.2080259]
[1739294107250,0.1539583,96138.0,96137.0,0.2080259]
[1739294107463,0.1609583,96138.0,96137.0,0.2080259]
[1739294107655,0.1639583,96138.0,96137.0,0.2080259]
[1739294110655,0.3719829,96138.0,96137.0,0.2080259]
[1739294110954,0.208031,96135.0,96134.0,0.3608]
[1739294112259,0.215031,96135.0,96134.0,0.3618]
[1739294112463,0.218181,96135.0,96134.0,0.001]
[1739294112760,0.291661,96135.0,96134.0,0.001]
[1739294113451,0.07863,96135.0,96130.0,0.18678128]